bitfinex/quotes_BTCUSD_20250602
["timestamp","ask_amount","ask_price","bid_price","bid_amount"]
[1748864681035,0.02272573,104100.0,104090.0,0.37168825]
[1748864681593,0.02272573,104100.0,104090.0,0.37168853]
[1748864682221,0.02272573,104100.0,104090.0,0.35618853]
[1748864682422,0.02272573,104100.0,104090.0,0.35618852]
[1748864683061,0.42879664,104100.0,104090.0,0.24443422]
[1748864683305,0.42879664,104100.0,104090.0,0.23543848]
[1748864683504,0.42879664,104100.0,104090.0,0.24443434]
[1748864683653,0.4885963,104100.0,104090.0,0.2444346]
[1748864684015,0.5045963,104100.0,104090.0,0.24443504]
[1748864684141,0.5045963,104100.0,104090.0,0.24443513]
[1748864684328,0.46009664,104100.0,104090.0,0.24443513]
[1748864684530,0.46009664,104100.0,104090.0,0.24443487]
[1748864684950,0.46009664,104100.0,104090.0,0.23543848]
[1748864685149,0.75693664,104100.0,104090.0,0.24443507]
[1748864685555,0.75693664,104100.0,104090.0,0.23543848]
[1748864685786,0.75693664,104100.0,104090.0,0.24443408]
[1748864686187,0.8326303,104100.0,104090.0,0.2444342]
[1748864686605,0.8326303,104100.0,104090.0,0.23543848]
[1748864686860,0.75693664,104100.0,104090.0,0.24443443]
[1748864687024,0.75693664,104100.0,104090.0,0.2444344]
[1748864687635,0.75693664,104100.0,104090.0,0.24443618]
[1748864687834,0.75693664,104100.0,104090.0,0.24443617]
[1748864688236,0.75693664,104100.0,104090.0,0.24443453]
[1748864688499,0.75693664,104100.0,104090.0,0.24443534]
[1748864689318,0.8326303,104100.0,104090.0,0.2444354]
[1748864689488,0.8326303,104100.0,104090.0,0.24443541]
[1748864689683,0.8326303,104100.0,104090.0,0.23543848]
[1748864690053,0.8326303,104100.0,104090.0,0.24443542]
[1748864690239,1.23870121,104100.0,104090.0,0.24443542]
[1748864690472,0.9246703,104100.0,104090.0,0.24443359]
[1748864691085,0.84897664,104100.0,104090.0,0.24443359]
[1748864691292,1.25504755,104100.0,104090.0,0.24443359]
[1748864691471,1.25304755,104100.0,104090.0,0.23943359]
[1748864691667,6.39990185,104100.0,104090.0,0.22222047]
[1748864691908,6.39990185,104100.0,104090.0,0.23243866]
[1748864691909,6.40090185,104100.0,104090.0,0.23243866]
[1748864692105,6.40090185,104100.0,104090.0,0.24204508]
[1748864692298,6.49341307,104100.0,104090.0,0.23243885]
[1748864692506,6.83341307,104100.0,104090.0,0.23243857]
[1748864693072,6.83341307,104100.0,104090.0,0.22283206]
[1748864693279,6.83241307,104100.0,104090.0,0.22283206]
[1748864693489,6.83441307,104100.0,104090.0,0.23343866]
[1748864694506,6.44453307,104100.0,104090.0,0.24104508]
[1748864694704,6.83301307,104100.0,104090.0,0.23143866]
[1748864694906,6.83401307,104100.0,104090.0,0.23143866]
[1748864695263,6.83401307,104100.0,104090.0,0.23143884]
[1748864695673,6.83397307,104100.0,104090.0,0.23143884]
[1748864695936,6.83397307,104100.0,104090.0,0.24104554]
[1748864696130,6.83397307,104100.0,104090.0,0.25065205]
[1748864696861,6.83397307,104100.0,104090.0,0.2506515]
[1748864697081,6.83397307,104100.0,104090.0,0.24104508]
[1748864697505,6.83397307,104100.0,104090.0,0.2506515]
[1748864697735,6.83397307,104100.0,104090.0,0.23143857]
[1748864697943,6.83397307,104100.0,104090.0,0.24104508]
[1748864698365,6.83397307,104100.0,104090.0,0.2506515]
[1748864698729,6.83397307,104100.0,104090.0,0.24104508]
[1748864698934,6.74122185,104100.0,104090.0,0.2506515]
[1748864699581,6.72049612,104100.0,104090.0,0.22992577]
[1748864700208,6.33229612,104100.0,104090.0,0.22992577]
[1748864700417,6.72041612,104100.0,104090.0,0.22992577]
[1748864700626,1.28229612,104100.0,104090.0,0.22992577]
[1748864700841,1.67041612,104100.0,104090.0,0.22992577]
[1748864701477,0.92426521,104100.0,104090.0,0.22992577]
[1748864701687,0.53241091,104100.0,104090.0,0.22992577]
[1748864701911,0.81249091,104100.0,104090.0,0.22992577]
[1748864702761,0.90349474,104100.0,104090.0,0.22992577]
[1748864704485,0.82849091,104100.0,104090.0,0.22992577]
[1748864704911,1.23456182,104100.0,104090.0,0.22992577]
[1748864705128,1.23464182,104100.0,104090.0,0.22992577]
[1748864705329,0.4225,104100.0,104090.0,0.22992577]
[1748864705544,0.82857091,104100.0,104090.0,0.22992577]
[1748864706007,0.50111091,104100.0,104090.0,0.22992577]
[1748864706210,0.79723091,104100.0,104090.0,0.22992577]
[1748864706418,0.40907091,104100.0,104090.0,0.22992577]
[1748864706624,0.79731091,104100.0,104090.0,0.22992577]
[1748864706833,0.003,104100.0,104090.0,0.22992577]
[1748864707062,0.003,104100.0,104090.0,0.26062577]
[1748864707494,0.40907091,104100.0,104090.0,0.26062577]
[1748864708330,0.40907091,104100.0,104090.0,0.2696012]
[1748864708582,0.40907091,104100.0,104090.0,0.26062577]
[1748864708764,0.003,104100.0,104090.0,0.26960212]
[1748864708971,0.40907091,104100.0,104090.0,0.26062577]
[1748864709176,0.40907091,104100.0,104090.0,0.26960211]
[1748864709401,0.003,104100.0,104090.0,0.26960211]
[1748864709851,0.003,104100.0,104090.0,0.26960256]
[1748864710057,0.40907091,104100.0,104090.0,0.26960256]
[1748864710298,0.003,104100.0,104090.0,0.26960304]
[1748864710882,0.003,104100.0,104090.0,0.26960379]
[1748864711255,0.003,104100.0,104090.0,0.2696053]
[1748864711480,0.003,104100.0,104090.0,0.26960496]
[1748864712319,0.003,104100.0,104090.0,0.75163409]
[1748864712459,0.003,104100.0,104090.0,1.157705]
[1748864712867,0.003,104100.0,104090.0,1.15770544]
[1748864713115,0.003,104100.0,104090.0,1.15770527]
[1748864713259,0.001,104100.0,104090.0,1.14772581]
[1748864713461,0.002,104100.0,104090.0,1.14872581]
[1748864713668,0.002,104100.0,104090.0,1.15770226]
[1748864714164,0.002,104100.0,104090.0,1.15770225]
[1748864715198,0.001,104100.0,104090.0,1.15770225]
[1748864715424,0.002,104100.0,104090.0,1.11352341]
[1748864716232,0.002,104100.0,104090.0,1.12806426]
[1748864716764,0.002,104100.0,104090.0,1.12806094]
[1748864717184,0.002,104100.0,104090.0,1.12806093]
[1748864717417,0.002,104100.0,104090.0,1.11706093]
[1748864718219,0.002,104100.0,104090.0,1.11705872]
[1748864718517,0.002,104100.0,104090.0,1.11705787]
[1748864718728,0.002,104100.0,104090.0,1.10809183]
[1748864718933,0.002,104100.0,104090.0,1.40457183]
[1748864719141,0.002,104100.0,104090.0,1.11705787]
[1748864719348,0.002,104100.0,104090.0,1.50600909]
[1748864719565,0.002,104100.0,104090.0,0.71098696]
[1748864719789,0.002,104100.0,104090.0,1.00738697]
[1748864720216,0.002,104100.0,104090.0,1.00738718]
[1748864720642,0.002,104100.0,104090.0,1.00738485]
[1748864720853,0.002,104100.0,104090.0,0.99638485]
[1748864721217,0.002,104100.0,104090.0,0.98742092]
[1748864721437,0.002,104100.0,104090.0,0.99638384]
[1748864721654,0.002,104100.0,104090.0,0.9963828]
[1748864722852,0.002,104100.0,104090.0,0.99638189]
[1748864723096,0.002,104100.0,104090.0,0.98742092]
[1748864723339,0.002,104100.0,104090.0,0.98180104]
[1748864723563,0.002,104100.0,104090.0,0.84424735]
[1748864723783,0.002,104100.0,104090.0,0.84424754]
[1748864724028,0.002,104100.0,104090.0,0.83528577]
[1748864725199,0.002,104100.0,104090.0,0.84424823]
[1748864725635,0.002,104100.0,104090.0,0.87534823]
[1748864725873,0.002,104100.0,104090.0,0.85538577]
[1748864726142,0.002,104100.0,104090.0,0.86434823]
[1748864726610,0.002,104100.0,104090.0,0.86434995]
[1748864727064,0.002,104100.0,104090.0,0.56798995]
[1748864727274,0.002,104100.0,104090.0,0.86414995]
[1748864728114,0.002,104100.0,104090.0,0.86415215]
[1748864728981,0.002,104100.0,104090.0,0.86407215]
[1748864729177,0.002,104100.0,104090.0,0.84897215]
[1748864729451,0.002,104100.0,104090.0,0.52792577]
[1748864729729,0.0184,104100.0,104090.0,0.49293335]
[1748864729998,0.0184,104100.0,104090.0,0.49293352]
[1748864729999,0.002,104100.0,104090.0,0.49293352]
[1748864730238,0.002,104100.0,104090.0,0.4929336]
[1748864730485,0.42447091,104100.0,104090.0,0.19689361]
[1748864730728,0.483118,104100.0,104090.0,0.19689361]
[1748864731395,0.483118,104100.0,104090.0,0.1968973]
[1748864731869,0.483118,104100.0,104090.0,0.19689733]
[1748864732335,0.483118,104100.0,104090.0,0.19689866]
[1748864733069,0.98504321,104100.0,104090.0,0.17831935]
[1748864733321,0.98504321,104100.0,104090.0,0.16871275]
[1748864733530,0.98504321,104100.0,104090.0,0.17831917]
[1748864734146,0.98404321,104100.0,104090.0,0.17731917]
[1748864734360,0.17390139,104100.0,104090.0,0.17831917]
[1748864734563,0.62892521,104100.0,104090.0,0.17831917]
[1748864734848,0.92388521,104100.0,104090.0,0.17631917]
[1748864735214,0.92488521,104100.0,104090.0,0.17831917]
[1748864735417,1.42346734,104100.0,104090.0,0.15910624]
[1748864735625,1.42346734,104100.0,104090.0,0.16871284]
[1748864735843,1.42346734,104100.0,104090.0,0.17831935]
[1748864736042,1.42346734,104100.0,104090.0,0.18792577]
[1748864736488,1.42346734,104100.0,104090.0,0.17831935]
[1748864736690,1.42346734,104100.0,104090.0,0.15910624]
[1748864737257,1.42346734,104100.0,104090.0,0.16871275]
[1748864738406,1.42346734,104100.0,104090.0,0.15910633]
[1748864738626,1.42346734,104100.0,104090.0,0.16871284]
[1748864738861,6.48307284,104100.0,104090.0,0.01247698]
[1748864739088,6.81346734,104100.0,104090.0,0.21422527]
[1748864739318,6.82307274,104100.0,104090.0,0.21422527]
[1748864739546,6.81346734,104100.0,104090.0,0.23343848]
[1748864739997,6.81346734,104100.0,104090.0,0.22383206]
[1748864740191,6.81346734,104100.0,104090.0,0.23343866]
[1748864740449,6.81346734,104100.0,104090.0,0.24304508]
[1748864740670,6.81346734,104100.0,104090.0,0.22383206]
[1748864740906,6.81346734,104100.0,104090.0,0.23343866]
[1748864741120,6.81346734,104100.0,104090.0,0.24304517]
[1748864741359,6.81346734,104100.0,104090.0,0.21422536]
[1748864741595,6.84721909,104100.0,104090.0,0.01247698]
[1748864741828,6.85682486,104100.0,104090.0,0.01247698]
[1748864742068,6.42610734,104100.0,104090.0,0.23343876]
[1748864742326,0.96888521,104100.0,104090.0,0.24304518]
[1748864742581,1.26504521,104100.0,104090.0,0.24304518]
[1748864744228,0.87752521,104100.0,104090.0,0.24304518]
[1748864744440,0.92508521,104100.0,104090.0,0.24304518]
[1748864744643,1.01759643,104100.0,104090.0,0.24304518]
[1748864745354,1.01755643,104100.0,104090.0,0.24304518]
[1748864749549,0.92512521,104100.0,104090.0,0.24304518]
[1748864749729,1.33119612,104100.0,104090.0,0.24304518]
[1748864749951,1.67119612,104100.0,104090.0,0.00286874]
[1748864750188,1.67119612,104100.0,104070.0,0.19214629]
[1748864750189,5.0819,104080.0,104070.0,0.21136356]
[1748864750395,0.82561091,104080.0,104070.0,0.2209722]
[1748864750808,0.82561091,104080.0,104070.0,0.23058047]
[1748864751223,5.7577863,104080.0,104070.0,0.21136384]
[1748864751474,6.0540263,104080.0,104070.0,0.22097238]
[1748864752500,6.0550263,104080.0,104070.0,0.22397238]
[1748864753010,6.0550263,104080.0,104070.0,0.21436384]
[1748864753220,6.0560263,104080.0,104070.0,0.21536402]
[1748864753426,6.0560263,104080.0,104070.0,0.22497275]
[1748864753561,6.0560263,104080.0,104070.0,0.23458139]
[1748864753953,6.38683966,104080.0,104070.0,0.004]
[1748864754161,6.38683966,104080.0,104050.0,0.23327804]
[1748864754162,0.0163,104060.0,104050.0,0.23327804]
[1748864754405,0.92090521,104060.0,104050.0,0.22366765]
[1748864754612,1.01341643,104060.0,104050.0,0.22366765]
[1748864754815,1.01341643,104060.0,104050.0,0.21405721]
[1748864755021,1.01341643,104060.0,104050.0,0.20444654]
[1748864755253,1.01341643,104060.0,104050.0,0.01223126]
[1748864755466,1.01390264,104060.0,104050.0,0.21405721]
[1748864755708,5.0807,104050.0,104040.0,0.21286339]
[1748864755912,5.0807,104050.0,104040.0,0.02062964]
[1748864755913,0.62513643,104050.0,104040.0,0.02062964]
[1748864756118,0.62513643,104050.0,104040.0,0.0110192]
[1748864756324,0.62513643,104050.0,104040.0,0.20325295]
[1748864756325,0.63474636,104050.0,104040.0,0.20325295]
[1748864756601,0.56189764,104050.0,104040.0,0.22247604]
[1748864756857,0.85416334,104050.0,104040.0,0.24169839]
[1748864757355,0.85616334,104050.0,104040.0,0.24169857]
[1748864757537,0.96457533,104050.0,104040.0,0.23208735]
[1748864757817,0.96457533,104050.0,104040.0,0.24169857]
[1748864758239,1.31911618,104050.0,104040.0,0.001406]
[1748864758447,1.31911618,104050.0,104000.0,2.41539629]
[1748864758448,0.23350347,104010.0,104000.0,2.41539629]
[1748864758671,5.57546792,104010.0,104000.0,2.60770398]
[1748864758889,0.93959612,104010.0,104000.0,2.63654901]
[1748864759124,0.53352521,104010.0,104000.0,2.63654901]
[1748864759380,0.83727091,104020.0,104010.0,0.22113146]
[1748864759579,1.32276521,104020.0,104010.0,0.22113146]
[1748864759785,1.33836521,104020.0,104010.0,0.22113146]
[1748864760196,1.33885112,104020.0,104010.0,0.22113146]
[1748864760407,0.94921112,104020.0,104010.0,0.22113146]
[1748864760607,1.02505112,104020.0,104010.0,0.31364268]
[1748864760932,0.92161112,104020.0,104010.0,0.22113146]
[1748864761557,1.31269112,104020.0,104010.0,0.22113146]
[1748864761766,6.79956203,104020.0,104010.0,0.20190366]
[1748864761975,6.79956203,104020.0,104010.0,0.23074592]
[1748864761976,0.95441112,104020.0,104010.0,0.23074592]
[1748864762195,0.42168591,104020.0,104010.0,0.23074592]
[1748864762404,0.30612591,104020.0,104010.0,0.02884226]
[1748864762613,0.82455112,104020.0,104010.0,0.1922892]
[1748864762829,5.26135143,104020.0,104010.0,0.22113127]
[1748864763018,0.00648591,104020.0,104010.0,0.22113127]
[1748864763268,0.41255682,104020.0,104010.0,0.23007357]
[1748864763482,0.00648591,104020.0,104010.0,0.23007357]
[1748864763699,0.00648591,104020.0,104010.0,0.26187048]
[1748864763916,0.00248591,104020.0,104010.0,0.26187048]
[1748864764124,0.00248591,104020.0,104010.0,0.68878557]
[1748864764328,0.00248591,104020.0,104010.0,0.99812356]
[1748864764536,0.00248591,104020.0,104010.0,0.99812263]
[1748864764745,0.00148591,104020.0,104010.0,0.99812263]
[1748864765157,0.00248591,104020.0,104010.0,0.9981224]
[1748864765792,0.00248591,104020.0,104010.0,0.998122]
[1748864766005,0.00248591,104020.0,104010.0,0.9981221]
[1748864766209,0.00248591,104020.0,104010.0,0.99812212]
[1748864766646,0.00248591,104020.0,104010.0,0.99812161]
[1748864766867,0.00248591,104020.0,104010.0,0.99812203]
[1748864767289,0.00248591,104020.0,104010.0,0.99812138]
[1748864767500,0.00248591,104020.0,104010.0,1.41928264]
[1748864768158,0.00248591,104020.0,104010.0,1.51116286]
[1748864768578,0.00248591,104020.0,104010.0,1.50222683]
[1748864768785,0.00148591,104020.0,104010.0,1.51116347]
[1748864769230,0.00248591,104020.0,104010.0,1.51116347]
[1748864769404,0.00148591,104020.0,104010.0,1.1045426]
[1748864770078,0.00248591,104020.0,104010.0,1.1045426]
[1748864770288,0.00248591,104020.0,104010.0,1.10454374]
[1748864770520,0.00148591,104020.0,104010.0,1.10454374]
[1748864770732,0.00148591,104020.0,104010.0,1.20370374]
[1748864770944,0.00148591,104020.0,104010.0,1.50450374]
[1748864771158,0.00148591,104020.0,104010.0,1.49556642]
[1748864771381,0.00248591,104020.0,104010.0,1.49656642]
[1748864771587,0.00248591,104020.0,104010.0,1.50550491]
[1748864771846,0.00248591,104020.0,104010.0,1.91212532]
[1748864772055,0.001,104050.0,104040.0,0.56106769]
[1748864772302,0.001,104050.0,104040.0,0.99839973]
[1748864772539,0.001,104050.0,104040.0,0.99839866]
[1748864773010,0.001,104050.0,104040.0,1.01293951]
[1748864773242,0.001,104050.0,104040.0,1.01294015]
[1748864773243,0.003,104050.0,104040.0,1.01294015]
[1748864773743,0.001,104050.0,104040.0,1.01294015]
[1748864774221,0.002,104050.0,104040.0,1.40500229]
[1748864774441,0.004,104050.0,104040.0,1.40600229]
[1748864774649,0.002,104050.0,104040.0,1.41394054]
[1748864774863,0.003,104050.0,104040.0,1.41694054]
[1748864775770,0.003,104050.0,104040.0,1.41694129]
[1748864775983,0.48322308,104080.0,104070.0,0.22100397]
[1748864775984,0.07660267,104080.0,104070.0,0.22100397]
[1748864776266,0.07660267,104080.0,104070.0,0.99879628]
[1748864776729,0.07660267,104080.0,104070.0,1.02764428]
[1748864777233,0.07660267,104100.0,104070.0,1.02764428]
[1748864777234,0.07660267,104100.0,104090.0,0.2209615]
[1748864778171,0.031,104120.0,104110.0,0.1921045]
[1748864778426,0.53347471,104120.0,104110.0,0.1921045]
[1748864778664,0.5336206,104120.0,104110.0,0.1921045]
[1748864778896,0.5336206,104120.0,104110.0,0.22091905]
[1748864779138,0.54581798,104120.0,104110.0,0.22091905]
[1748864779678,0.55081798,104120.0,104110.0,0.22191905]
[1748864779925,0.45496368,104120.0,104110.0,0.22191905]
[1748864780402,0.14085449,104120.0,104110.0,0.22191905]
[1748864780646,0.01114589,104120.0,104110.0,0.22291905]
[1748864781863,0.00614589,104120.0,104110.0,0.67277335]
[1748864782076,0.00614589,104120.0,104110.0,0.7038142]
[1748864782300,0.01014589,104120.0,104110.0,0.75629917]
[1748864782733,0.00614589,104120.0,104110.0,0.75529917]
[1748864782964,0.00714589,104120.0,104110.0,0.75529917]
[1748864783459,0.00114589,104120.0,104110.0,0.75429917]
[1748864783705,0.00114589,104120.0,104110.0,1.14893917]
[1748864783910,0.00514589,104120.0,104110.0,1.14993917]
[1748864784084,0.00114589,104120.0,104110.0,1.14905917]
[1748864784498,0.00214589,104120.0,104110.0,1.14905917]
[1748864784702,0.00214589,104120.0,104110.0,1.54905917]
[1748864785087,0.00214589,104120.0,104110.0,1.15429917]
[1748864785285,0.00214589,104120.0,104110.0,1.54897917]
[1748864785486,0.00214589,104120.0,104110.0,1.95559958]
[1748864785717,0.00214589,104120.0,104110.0,1.54897917]
[1748864785923,0.00114589,104120.0,104110.0,1.54897917]
[1748864786120,0.00114589,104120.0,104110.0,1.54997917]
[1748864787098,0.00014589,104120.0,104110.0,1.54997917]
[1748864787282,0.00014589,104120.0,104110.0,1.55197917]
[1748864787436,0.3822663,104150.0,104140.0,0.22085541]
[1748864787655,0.38275242,104150.0,104140.0,0.26406661]
[1748864788265,0.00048612,104150.0,104140.0,0.26406661]
[1748864788479,0.00048612,104150.0,104140.0,0.69992091]
[1748864788875,0.00348612,104150.0,104140.0,0.70092091]
[1748864789173,0.00748612,104150.0,104140.0,0.70192091]
[1748864789618,0.00748612,104150.0,104140.0,0.73322091]
[1748864789830,0.00748612,104150.0,104140.0,0.70192091]
[1748864790474,0.00448612,104150.0,104140.0,0.70092091]
[1748864790683,0.00248612,104150.0,104140.0,0.69992091]
[1748864790896,0.00048612,104150.0,104140.0,0.69992091]
[1748864791102,0.00348612,104150.0,104140.0,0.65670971]
[1748864791309,0.00348612,104150.0,104140.0,0.56085541]
[1748864791518,0.00048612,104150.0,104140.0,0.56085541]
[1748864791727,0.00148612,104150.0,104140.0,0.56085541]
[1748864791935,0.00148612,104150.0,104140.0,0.96085541]
[1748864792768,0.00148612,104150.0,104140.0,0.56085541]
[1748864792769,0.44070653,104150.0,104140.0,0.56085541]
[1748864793679,0.44070653,104150.0,104140.0,0.22085541]
[1748864793910,0.03408612,104150.0,104140.0,0.22085541]
[1748864796279,0.01748612,104150.0,104140.0,0.22085541]
[1748864796897,0.03248612,104150.0,104140.0,0.22085541]
[1748864797314,0.43910653,104150.0,104140.0,0.22085541]
[1748864799407,0.03248612,104150.0,104140.0,0.22085541]
[1748864799607,0.43910653,104150.0,104140.0,0.22085541]
[1748864799811,0.03248612,104150.0,104140.0,0.22085541]
[1748864800015,0.43910653,104150.0,104140.0,0.22085541]
[1748864800616,0.50127991,104150.0,104140.0,0.22085541]
[1748864800816,0.50127991,104150.0,104140.0,0.21125379]
[1748864800817,0.80199991,104150.0,104140.0,0.21125379]
[1748864801019,0.0314,104130.0,104120.0,0.21126109]
[1748864801259,0.0314,104130.0,104120.0,0.22086529]
[1748864801260,0.43802041,104130.0,104120.0,0.22086529]
[1748864801459,0.73906041,104130.0,104120.0,0.22086529]
[1748864802282,0.81726967,104130.0,104120.0,0.22086529]
[1748864802904,0.81726967,104130.0,104120.0,0.22186529]
[1748864803493,0.73910041,104130.0,104120.0,0.22186529]
[1748864803701,0.73910041,104130.0,104120.0,0.22386529]
[1748864803908,0.73910041,104130.0,104120.0,0.22186529]
[1748864804351,0.73910041,104130.0,104120.0,0.22086529]
[1748864804772,0.74010041,104130.0,104120.0,0.22086529]
[1748864804983,0.74010041,104130.0,104120.0,0.22086613]
[1748864804984,0.92846593,104130.0,104120.0,0.22086613]
[1748864805202,0.92846593,104130.0,104120.0,0.23046978]
[1748864805404,0.83595471,104130.0,104120.0,0.23046978]
[1748864806149,0.83595471,104130.0,104120.0,0.2112622]
[1748864806551,6.32148322,104130.0,104120.0,0.0096043]
[1748864806754,6.22605471,104130.0,104120.0,0.21129446]
[1748864806955,6.13020041,104130.0,104120.0,0.20000089]
[1748864807151,6.13020041,104130.0,104120.0,0.21920912]
[1748864807392,6.12920041,104130.0,104120.0,0.21920912]
[1748864807555,6.13120041,104130.0,104120.0,0.20960519]
[1748864807761,6.14280296,104130.0,104120.0,0.20960519]
[1748864807960,6.14280296,104130.0,104110.0,0.22091831]
[1748864807961,6.12090569,104130.0,104110.0,0.22091831]
[1748864808190,0.53126041,104120.0,104110.0,0.22091831]
[1748864808369,0.62711471,104120.0,104110.0,0.22091831]
[1748864810695,0.1264543,104120.0,104110.0,0.22091831]
[1748864810896,0.92843471,104120.0,104110.0,0.22091831]
[1748864811303,0.92943471,104120.0,104110.0,0.22091831]
[1748864811510,0.92947471,104120.0,104110.0,0.22091831]
[1748864813336,0.95976647,104120.0,104110.0,0.22091831]
[1748864813714,0.92947471,104120.0,104110.0,0.22091831]
[1748864818601,0.001,104120.0,104110.0,0.22091831]
[1748864818716,0.001,104120.0,104110.0,0.22986302]
[1748864818924,0.40762041,104120.0,104110.0,0.22986302]
[1748864819134,0.40762041,104120.0,104110.0,0.22091831]
[1748864819828,0.60650475,104120.0,104110.0,0.22091831]
[1748864820476,0.70054475,104120.0,104110.0,0.21131448]
[1748864820692,1.10716516,104120.0,104110.0,0.21131467]
[1748864820930,0.0319,104100.0,104090.0,0.19214141]
[1748864821169,0.0319,104100.0,104090.0,0.22030705]
[1748864821170,5.97937471,104100.0,104090.0,0.22030705]
[1748864821386,6.41188593,104100.0,104090.0,0.23056839]
[1748864821602,6.41188593,104100.0,104090.0,0.24017508]
[1748864821812,6.41188593,104100.0,104090.0,0.23056801]
[1748864822020,6.41188593,104100.0,104090.0,0.2209615]
[1748864822222,6.41188593,104100.0,104090.0,0.22110739]
[1748864822428,6.41188593,104100.0,104090.0,0.23071381]
[1748864822659,6.41188593,104100.0,104090.0,0.2307139]
[1748864822873,6.41588593,104100.0,104090.0,0.2317139]
[1748864823078,6.41588593,104100.0,104090.0,0.20289437]
[1748864823268,6.41588593,104100.0,104090.0,0.22210804]
[1748864823473,6.41588593,104100.0,104090.0,0.24132134]
[1748864823767,6.41588593,104100.0,104090.0,0.22210804]
[1748864823992,6.42949133,104100.0,104090.0,0.21350116]
[1748864824302,6.41988593,104100.0,104090.0,0.24232097]
[1748864824914,0.1357543,104100.0,104090.0,0.24232088]
[1748864825125,0.71558041,104100.0,104090.0,0.24232088]
[1748864825976,0.008,104100.0,104090.0,0.24232088]
[1748864826184,0.008,104100.0,104090.0,0.27482088]
[1748864826185,0.30888,104100.0,104090.0,0.27482088]
[1748864826384,0.008,104100.0,104090.0,0.27482088]
[1748864826560,0.30888,104100.0,104090.0,0.28377328]
[1748864826940,0.30888,104100.0,104090.0,0.27482088]
[1748864827305,0.30888,104100.0,104090.0,0.2837778]
[1748864827515,0.008,104100.0,104090.0,0.2837778]
[1748864827730,0.008,104100.0,104090.0,0.27482088]
[1748864827914,0.008,104100.0,104090.0,0.2837778]
[1748864828441,0.008,104100.0,104090.0,0.2837813]
[1748864828695,0.008,104100.0,104090.0,0.27482088]
[1748864828932,0.008,104100.0,104090.0,0.2837813]
[1748864829675,0.008,104100.0,104090.0,0.28378663]
[1748864829929,0.008,104100.0,104090.0,0.27482088]
[1748864830436,0.008,104100.0,104090.0,0.28378663]
[1748864830695,0.008,104100.0,104090.0,0.28379278]
[1748864831193,0.008,104100.0,104090.0,1.0706454]
[1748864831435,0.008,104100.0,104090.0,1.08518625]
[1748864831691,0.008,104100.0,104090.0,1.4709254]
[1748864831869,0.008,104100.0,104090.0,1.07092541]
[1748864832104,0.004,104100.0,104090.0,1.06992541]
[1748864832304,0.004,104100.0,104090.0,1.0699255]
[1748864832510,0.006,104100.0,104090.0,1.0699255]
[1748864832646,0.002,104100.0,104090.0,1.0971937]
[1748864832909,0.004,104100.0,104090.0,1.0971937]
[1748864833113,0.004,104100.0,104090.0,1.09719377]
[1748864833515,0.004,104100.0,104090.0,1.08822083]
[1748864833716,0.004,104100.0,104090.0,1.11173474]
[1748864833915,0.004,104100.0,104090.0,1.51835582]
[1748864834119,0.004,104100.0,104090.0,1.51835557]
[1748864834935,0.004,104100.0,104090.0,1.11173516]
[1748864835144,0.004,104100.0,104090.0,1.11173495]
[1748864835761,0.004,104100.0,104090.0,1.11173408]
[1748864836825,0.004,104100.0,104090.0,0.71764758]
[1748864837021,0.004,104100.0,104090.0,1.01820811]
[1748864837430,0.004,104100.0,104090.0,1.01820837]
[1748864837802,0.004,104100.0,104090.0,1.01820759]
[1748864838007,0.004,104100.0,104090.0,1.01820748]
[1748864838422,0.004,104100.0,104090.0,0.70867518]
[1748864838762,0.004,104100.0,104090.0,1.01812748]
[1748864839420,0.004,104100.0,104090.0,1.01812674]
[1748864839635,0.004,104100.0,104090.0,1.01800674]
[1748864840287,0.004,104100.0,104090.0,1.00140674]
[1748864840704,0.004,104100.0,104090.0,1.00140691]
[1748864840910,0.004,104100.0,104090.0,0.99243518]
[1748864841123,0.004,104100.0,104090.0,1.00140616]
[1748864841532,0.004,104100.0,104090.0,1.00140704]
[1748864841733,0.004,104100.0,104090.0,1.01800704]
[1748864843847,0.004,104100.0,104090.0,1.00903518]
[1748864844081,0.004,104100.0,104090.0,1.01800549]
[1748864844881,0.004,104100.0,104090.0,1.43019644]
[1748864845099,0.004,104100.0,104090.0,1.43916557]
[1748864845721,0.004,104100.0,104090.0,1.03254516]
[1748864846156,0.004,104100.0,104090.0,1.02357603]
[1748864846367,0.004,104100.0,104090.0,1.03254349]
[1748864846581,0.004,104100.0,104090.0,1.02357603]
[1748864846795,0.004,104100.0,104090.0,1.0325427]
[1748864847622,0.004,104100.0,104090.0,1.03254267]
[1748864848244,0.004,104100.0,104090.0,0.68514116]
[1748864848450,0.004,104100.0,104090.0,0.98546116]
[1748864848657,0.004,104100.0,104090.0,0.98546078]
[1748864849098,0.004,104100.0,104090.0,0.98546183]
[1748864849490,0.004,104100.0,104090.0,0.68514183]
[1748864849703,0.004,104100.0,104090.0,0.98534183]
[1748864849917,0.004,104100.0,104090.0,0.98534275]
[1748864850129,0.004,104100.0,104090.0,1.43830401]
[1748864850332,0.004,104100.0,104090.0,1.42933644]
[1748864850742,0.002,104100.0,104090.0,1.02271603]
[1748864851153,0.002,104100.0,104090.0,1.02371603]
[1748864851366,0.002,104100.0,104090.0,1.03268146]
[1748864851577,0.002,104100.0,104090.0,1.43930187]
[1748864851788,0.002,104100.0,104090.0,1.43930164]
[1748864851989,0.002,104100.0,104090.0,1.43033644]
[1748864852207,0.002,104100.0,104090.0,1.43930484]
[1748864852411,0.002,104100.0,104090.0,1.83033644]
[1748864852534,0.002,104100.0,104090.0,1.83930486]
[1748864852748,0.002,104100.0,104090.0,1.42371603]
[1748864852943,0.002,104100.0,104090.0,1.43268419]
[1748864853145,0.002,104100.0,104090.0,1.13248432]
[1748864853341,0.002,104100.0,104090.0,1.52648432]
[1748864853545,0.002,104100.0,104090.0,1.51751603]
[1748864853752,0.002,104100.0,104090.0,1.52648435]
[1748864854176,0.002,104100.0,104090.0,1.52648927]
[1748864854576,0.002,104100.0,104090.0,1.52636927]
[1748864856743,0.47602308,104120.0,104110.0,0.22990331]
[1748864857106,0.47802308,104120.0,104110.0,0.22990476]
[1748864857551,0.47802308,104120.0,104110.0,0.22990475]
[1748864857748,0.47802308,104120.0,104110.0,0.22990515]
[1748864858209,0.47802308,104120.0,104110.0,0.22990572]
[1748864858361,0.47802308,104120.0,104110.0,0.22091905]
[1748864858568,0.44042041,104120.0,104110.0,0.27312932]
[1748864858933,0.0338,104120.0,104110.0,0.22990569]
[1748864859343,0.0338,104120.0,104110.0,0.22990762]
[1748864859546,0.0338,104120.0,104110.0,0.22990761]
[1748864860106,0.0338,104120.0,104110.0,0.22990799]
[1748864860309,0.0338,104120.0,104110.0,0.26504157]
[1748864860514,0.002,104120.0,104110.0,0.22990793]